Cogmind - Beta 15 @@@ ROGUE MODE // 2025.09.18 @ 02:22:39 Player: deadnoob Result: Destroyed by 8N-G6V(j) with Overtuned Pulse Rifle Performance ------------- Evolutions (0) 0 Regions Visited (4) 800 Robots Destroyed (31) 155 Value Destroyed (766) 766 Prototype IDs (4) 80 Alien Tech Used (0) 0 Bonus (0) 0 TOTAL SCORE: 1801 Bonus ------- None Cogmind --------- Core Integrity 0/250 Matter 300/300 Energy 100/100 System Corruption 0% Temperature Cool (24) Movement Treading (480) Ox4 Location -8/Scraptown Parts ------- > --- POWER (1) -------- (None) > --- PROPULSION (2) --- Light Treads > --- UTILITY (2) ------ Heat Sink Huge Storage Unit > --- WEAPON (2) ------- Beam Cannon > --- INVENTORY (25) --- Light Treads Light Treads Light Armor Plating Scrap Shield Grenade Launcher Grenade Launcher Missile Launcher Datajack Makeshift Hammer Peak State ------------ > --- POWER ------------ Nuclear Core > --- PROPULSION ------- Light Treads Light Treads > --- UTILITY ---------- Heat Sink Huge Storage Unit > --- WEAPON ----------- Beam Cannon Makeshift Hammer > --- INVENTORY -------- Light Treads Light Treads Light Armor Plating Scrap Shield Beam Cannon Beam Cannon Grenade Launcher Grenade Launcher SUBCON Basin [Rating: 31] Favorites ----------- Power Ion Engine Engine Ion Engine Power Core Nuclear Core Propulsion Light Treads Treads Light Treads Leg Aluminum Leg Wheel Subdweller Monowheel Utility Heat Sink Device Heat Sink Storage Huge Storage Unit Weapon Beam Cannon Energy Gun EM Pulse Gun Energy Cannon Beam Cannon Ballistic Gun Assault Rifle Launcher Grenade Launcher Impact Weapon Makeshift Hammer Build | -11 -10 -10 -8 -8 ------- Run | Yrd Mat Sub Rec Scr Slots Evolved . | . . . . . Power . | . . . . . Propulsion . | . . . . . Utility . | . . . . . Weapon . | . . . . . Parts Attached 23 | . 13 7 3 . Power 5 | . 3 1 1 . Engine 4 | . 3 1 . . Core 1 | . . . 1 . Reactor . | . . . . . Propulsion 7 | . 4 3 . . Treads 6 | . 4 2 . . Leg . | . . . . . Wheel 1 | . . 1 . . Hover . | . . . . . Flight . | . . . . . Utility 3 | . 3 . . . Device 1 | . 1 . . . Storage 2 | . 2 . . . Processor . | . . . . . Hackware . | . . . . . Protection . | . . . . . Artifact . | . . . . . Weapon 8 | . 3 3 2 . Energy Gun 1 | . 1 . . . Energy Cannon 4 | . 2 1 1 . Ballistic Gun . | . . . . . Ballistic Cannon . | . . . . . Launcher 2 | . . 1 1 . Special Weapon . | . . . . . Impact Weapon 1 | . . 1 . . Slashing Weapon . | . . . . . Piercing Weapon . | . . . . . Special Melee Weapon . | . . . . . Unidentified Prototypes . | . . . . . Parts Lost 6 | . . 2 1 3 Power 2 | . . . 1 1 Propulsion 2 | . . 1 . 1 Utility . | . . . . . Weapon 2 | . . 1 . 1 Highest Loss Streak 3 | . . 1 1 3 To Critical Strikes . | . . . . . Average Backups 9 | 5 11 10 8 9 Power . | 1 1 . . . Propulsion 3 | 3 3 3 2 2 Utility 1 | . 2 1 2 2 Weapon 4 | 1 5 5 4 4 Tool/Special . | . . . . . Unused Backups 13 | . 4 5 . 4 Power 1 | . 1 . . . Propulsion 3 | . 2 . . 1 Utility 3 | . 1 1 . 1 Weapon 5 | . . 4 . 1 Tool/Special 1 | . . . . 1 Average Slot Usage (%) 99 | . 98 99 99 100 Engine 8 | . 14 14 2 . Core 5 | . . . 11 14 Treads 26 | . 21 27 28 28 Device 13 | . 12 14 14 14 Storage 14 | . 14 14 14 14 Energy Cannon 22 | . 12 27 18 28 Ballistic Gun 1 | . 10 . . . Impact Weapon 4 | . . . 9 . Peak Build Rating 31 | 6 8 29 31 28 Average Rating 24 | 6 7 24 29 26 On Entrance 15 | 6 6 8 27 28 Naked Turns . | . . . . . Heaviest Build 94 | 12 92 92 94 94 Greatest Support 40 | 20 40 40 40 40 Greatest Overweight (x) 4 | . 2 4 2 2 Average Overweight (x) 1 | . . 2 2 2 Largest Inventory Capacity 25 | 8 25 25 25 25 Average Capacity 24 | 8 17 25 25 25 Most Carried 25 | 5 17 25 25 25 Average Carried 22 | 4 11 24 24 24 Final Capacity 25 | 8 25 25 25 25 Final Carried 25 | 4 17 24 25 10 Class Distribution -------------------- 96% | Mutant 3% | Scavenger-Mutant Dominant Class ---------------- Mutant | -10/Materials Mutant | -10/Subcaves Mutant | -8/Recycling Mutant | -8/Scraptown Resources | -11 -10 -10 -8 -8 ----------- Run | Yrd Mat Sub Rec Scr Matter Collected 899 | 187 502 117 93 . Remotely . | . . . . . Salvage Created 974 | . 526 225 223 . Parts 58 | . 30 18 10 . Haulers Intercepted 1 | . 1 . . . Recyclers Shooed . | . . . . . Parts Field Recycled . | . . . . . Retrieved Matter . | . . . . . Parts Self-Destructed 15 | . . 15 . . Prevented . | . . . . . Kills | -11 -10 -10 -8 -8 ------- Run | Yrd Mat Sub Rec Scr Combat Hostiles Destroyed 25 | . 13 8 4 . Melee 1 | . . . 1 . Guns 8 | . 8 . . . Cannons 14 | . 5 8 1 . Classes Destroyed 9 | . 5 2 2 . Worker 2 | . 2 . . . Builder 1 | . . . 1 . Hauler 1 | . 1 . . . Turret 1 | . . 1 . . Watcher 1 | . 1 . . . Swarmer 10 | . 6 4 . . Grunt 7 | . 7 . . . Sentry 4 | . . . 4 . Subdweller 4 | . . 4 . . Best Kill Streak 5 | . 3 5 1 . Combat Bots Only 4 | . 3 4 1 . Max Kills in Single Turn 2 | . 2 1 1 . Gunslinging . | . . . . . Exploded . | . . . . . Melee 1 | . . . 1 . Uniques/NPCs Destroyed . | . . . . . Combat | -11 -10 -10 -8 -8 -------- Run | Yrd Mat Sub Rec Scr Hostile Shots Fired 136 | . 52 58 13 13 Missed 40 | . 17 17 4 2 Hits 96 | . 35 41 9 11 Projectile 96 | . 35 41 9 11 Critical Strikes 2 | . . 1 1 . Damage Taken 1492 | . 367 669 136 320 Core 264 | . 90 113 14 47 Absorbed by Shields . | . . . . . Core Remaining (%) 100 | 100 . . . . Volleys Fired 85 | . 47 35 3 . Largest 2 | . 2 2 2 . Hottest 120 | . 120 120 120 . Shots Fired 153 | . 85 63 5 . Gun 59 | . 59 . . . Cannon 90 | . 26 59 5 . Launcher 4 | . . 4 . . Special . | . . . . . Kinetic 47 | . 47 . . . Thermal 90 | . 26 59 5 . Explosive 4 | . . 4 . . Electromagnetic 12 | . 12 . . . Robot Hit Streak 20 | . 11 20 6 . Robot Miss Streak 3 | . 3 2 2 . Penetration Max . | . . . . . Secondary Targets . | . . . . . Shots Hit Robots 110 | . 56 42 12 . Core Hits 40 | . 21 15 4 . Critical Kills . | . . . . . Critical Parts Destroyed . | . . . . . Critical Strikes . | . . . . . Melee Attacks 21 | . . 12 9 . Impact 21 | . . 12 9 . Slashing . | . . . . . Piercing . | . . . . . Sneak Attacks 5 | . . 1 4 . Combat Hostiles 3 | . . . 3 . Follow-up Attacks . | . . . . . Damage Inflicted 2035 | . 804 756 475 . Guns 576 | . 576 . . . Cannons 959 | . 228 680 51 . Explosions 76 | . . 76 . . Melee 417 | . . . 417 . Ramming 7 | . . . 7 . Kinetic 424 | . 424 . . . Thermal 959 | . 228 680 51 . Explosive 76 | . . 76 . . Electromagnetic 152 | . 152 . . . Impact 417 | . . . 417 . Slashing . | . . . . . Piercing . | . . . . . Highest Corruption . | . . . . . Average Corruption . | . . . . . Corruption Purged . | . . . . . Corruption Blocked . | . . . . . Overload Shots . | . . . . . Overflow Damage 33 | . . . 33 . Projectiles . | . . . . . Explosions . | . . . . . Melee 33 | . . . 33 . Knockbacks 1 | . . . 1 . Impact 1 | . . . 1 . Kinetic . | . . . . . Secondary . | . . . . . Self-Inflicted Damage 18 | . . 18 . . Shots 1 | . . 1 . . Rammed 2 | . 1 . 1 . Targets Rammed 2 | . 1 . 1 . Kicked . | . . . . . Crushed . | . . . . . Highest Temperature 120 | . 120 3 99 10 Average Temperature 40 | . 40 3 48 10 Received Heat Transfer 411 | . 132 141 54 84 Siege Activations . | . . . . . Martial Activations . | . . . . . Shielding Activations . | . . . . . Robots Disrupted . | . . . . . Combat Hostiles . | . . . . . Robots Corrupted 2 | . . . 2 . Combat Hostiles 2 | . . . 2 . Parts Fried 6 | . 1 . 5 . Impact Corruptions 4 | . . . 4 . Robots Melted . | . . . . . Combat Hostiles . | . . . . . Parts Melted 2 | . . 2 . . Heat Transferred 2035 | . 481 1443 111 . Parts Sabotaged . | . . . . . Parts Stolen . | . . . . . Parts Stripped . | . . . . . Power Chain Reactions . | . . . . . Alert | -11 -10 -10 -8 -8 ------- Run | Yrd Mat Sub Rec Scr Maximum Alert Level . | . . . . . Low Security (%) 100 | 100 100 . 100 . Level 1 . | . . . . . Level 2 . | . . . . . Level 3 . | . . . . . Level 4 . | . . . . . Level 5 . | . . . . . High Security . | . . . . . Max Security . | . . . . . Peak Influence 129 | . 129 . 113 . Initial 93 | . . . 93 . Average 43 | . 62 . 37 . Influence Increases 962 | . 408 220 334 . Destroy 0b10 Robot/C 440 | . 260 100 80 . Destroy 0b10 Robot/NC 25 | . 20 . 5 . Destroy Leader 54 | . 54 . . . Successful Hack 83 | . 14 . 69 . Select Force Hacks 210 | . 30 . 180 . Disable Machine 30 | . 30 . . . Lose Combat Pursuer 120 | . . 120 . . Influence Decreases 962 | . 312 121 504 25 Entered New Map 174 | . . 47 102 25 Time Decay 768 | . 312 54 402 . Lost Part 20 | . . 20 . . Squads Dispatched 2 | . 2 . . . Investigation 1 | . 1 . . . Extermination . | . . . . . Reinforcement 1 | . 1 . . . Assault . | . . . . . Garrison . | . . . . . Intercept . | . . . . . Searches Triggered . | . . . . . Construction Impeded . | . . . . . Haulers Reinforced . | . . . . . Active Scanning Responses . | . . . . . Cargo Convoy Interrupts . | . . . . . Stealth | -11 -10 -10 -8 -8 --------- Run | Yrd Mat Sub Rec Scr Distress Signals 1 | . 1 . . . Communications Jammed . | . . . . . Distress Signals . | . . . . . Times Spotted 45 | . 23 10 4 8 Peak Tracking Total 8 | . 3 4 1 8 Tactical Retreats 3 | . . 3 . . Traps | -11 -10 -10 -8 -8 ------- Run | Yrd Mat Sub Rec Scr Traps Triggered . | . . . . . Indirectly . | . . . . . Trap Hack Attempts . | . . . . . Triggered . | . . . . . Disarmed . | . . . . . Reprogrammed . | . . . . . Reused . | . . . . . Traps Extracted . | . . . . . Installed . | . . . . . Triggered . | . . . . . Machines | -11 -10 -10 -8 -8 ---------- Run | Yrd Mat Sub Rec Scr Machines Disabled 5 | . 2 3 . . Max in Single Turn 1 | . 1 1 . . Machines Repaired . | . . . . . Machines Dismantled . | . . . . . Machines Sabotaged . | . . . . . Overloaded Fab Kills . | . . . . . Hacking | -11 -10 -10 -8 -8 --------- Run | Yrd Mat Sub Rec Scr Machines Accessed 20 | . 5 3 12 . Terminals 10 | . 4 . 6 . Fabricators . | . . . . . Repair Stations . | . . . . . Recycling Units 7 | . 1 . 6 . Scanalyzers . | . . . . . Garrison Access . | . . . . . Total Hacks 54 | . 15 7 32 . Successful 37 | . 9 7 21 . Failed 17 | . 6 . 11 . Catastrophic 1 | . . . 1 . Database Lockouts . | . . . . . Manual 39 | . 14 . 25 . Terminals 39 | . 14 . 25 . Fabricators . | . . . . . Repair Stations . | . . . . . Recycling Units 8 | . 1 . 7 . Scanalyzers . | . . . . . Garrison Access . | . . . . . Terminal Hacks 16 | . 3 7 6 . Record 6 | . 1 5 . . Part Schematic 5 | . 2 . 3 . Robot Schematic 1 | . . . 1 . Prototype ID Bank 2 | . . . 2 . Open Door 1 | . . 1 . . Release Object 1 | . . 1 . . Fabricator Hacks . | . . . . . Repair Station Hacks . | . . . . . Recycling Unit Hacks . | . . . . . Scanalyzer . | . . . . . Garrison Access Hacks . | . . . . . Unauthorized Hacks 21 | . 6 . 15 . Terminals 14 | . 5 . 9 . Botnet 5 | . 1 . 4 . Skim 9 | . 4 . 5 . Fabricators . | . . . . . Repair Stations . | . . . . . Recycling Units 7 | . 1 . 6 . Tunnel 7 | . 1 . 6 . Scanalyzers . | . . . . . Garrison Access . | . . . . . Data Cores Recovered . | . . . . . Used . | . . . . . Hacking Detections 10 | . 4 . 6 . Full Trace Events 1 | . . . 1 . Feedback Events . | . . . . . Feedback Blocked . | . . . . . Robot Schematics Acquired 1 | . . . 1 . Robots Built . | . . . . . Authchips . | . . . . . Time . | . . . . . Total Robot Build Rating . | . . . . . Part Schematics Acquired 3 | . 2 . 1 . Parts Built . | . . . . . Authchips . | . . . . . Time . | . . . . . Total Part Build Rating . | . . . . . Parts Repaired . | . . . . . Time . | . . . . . Parts Recycled . | . . . . . Recycled Matter . | . . . . . Retrieved Matter . | . . . . . Retrieved Components . | . . . . . Parts Scanalyzed . | . . . . . Part Schematics Acquired . | . . . . . Parts Damaged . | . . . . . Bothacking | -11 -10 -10 -8 -8 ------------ Run | Yrd Mat Sub Rec Scr Used RIF Installer . | . . . . . Robots Hacked . | . . . . . Non-combat . | . . . . . Combat . | . . . . . Robot Hacks Applied . | . . . . . Relay Couplers Released . | . . . . . Fabnet Peak Effective % . | . . . . . Robots Rewired . | . . . . . Allies Hacked . | . . . . . Hacks Repelled . | . . . . . Allies | -11 -10 -10 -8 -8 -------- Run | Yrd Mat Sub Rec Scr Total Allies . | . . . . . Largest Group . | . . . . . Highest-Rated Group . | . . . . . Highest-Rated Ally . | . . . . . Total Orders . | . . . . . Ally Attacks . | . . . . . Total Damage . | . . . . . Kills . | . . . . . Allies Corrupted . | . . . . . Allies Melted . | . . . . . Intel | -11 -10 -10 -8 -8 ------- Run | Yrd Mat Sub Rec Scr Active Infowar (turns) . | . . . . . Robot Analysis Total . | . . . . . Derelict Logs Recovered 2 | . . 2 . . Drone Launches . | . . . . . Drone Recoveries . | . . . . . Exploration | -11 -10 -10 -8 -8 ------------- Run | Yrd Mat Sub Rec Scr Turns Passed 6904 | 2 801 3082 2672 347 Spaces Moved 2136 | 1 287 918 824 106 Core . | . . . . . Treads 2011 | . 212 869 824 106 Legs 76 | 1 75 . . . Wheels 49 | . . 49 . . Hover . | . . . . . Flight . | . . . . . Fastest Speed 120 | 120 120 150 320 320 Average Speed 301 | 120 211 311 320 320 Slowest Speed 480 | 120 320 480 320 320 Overloaded Moves . | . . . . . Propulsion Burnouts . | . . . . . Robots Hopped . | . . . . . Potential Cave-ins . | . . . . . Cave-ins Triggered . | . . . . . Exploration Rate (%) 49 | 2 60 76 96 15 Regions Visited 4 Branch Regions 3 Pre-discovered Areas 10 | . 1 3 6 . Known Exits Taken . | . . . . . Unknown Exits Taken 4 | 1 1 1 1 . Scrap Searched . | . . . . . Spaces Dug 2 | . . 2 . . Terrain Destroyed 15 | . . 15 . . Melee 2 | . . 2 . . Projectile . | . . . . . AOE 13 | . . 13 . . Terrain Rammed . | . . . . . Walls Destroyed . | . . . . . Machines Disabled . | . . . . . Actions | -11 -10 -10 -8 -8 --------- Run | Yrd Mat Sub Rec Scr Total 2427 | 2 395 1073 843 114 Wait 109 | . 24 79 . 6 Move 2132 | . 286 917 823 106 Hop . | . . . . . Pick Up 20 | . 15 4 1 . Fast Attach 6 | . 1 3 2 . Attach 7 | . 3 4 . . Detach . | . . . . . Swap 20 | . 11 6 3 . Drop 24 | 2 7 13 1 1 Fire 85 | . 47 35 3 . Melee 21 | . . 12 9 . Ram . | . . . . . Kick . | . . . . . Crush 2 | . 1 . 1 . Escape Stasis . | . . . . . Rewire . | . . . . . Trap . | . . . . . Miscellaneous 1 | . . . . 1 Route ------- -11/Scrapyard -10/Materials (discovered 4 exits: [*Mat x2] / [*Min] / *Sub) -10/Subcaves (discovered 3 exits: [*Mat x2] / *Rec) -8/Recycling (discovered 2 exits: *Fac / [*Scr]) -8/Scraptown (discovered 2 exits: Fac x2) History --------- Turn | Location | Event 3 | -11/Scrapyard | Discovered new exit (range 0) 3 | -11/Scrapyard | Entered Materials 235 | -10/Materials | Discovered new exit (range 6) 389 | -10/Materials | Discovered new exit (range 15) 655 | -10/Materials | Discovered new exit (range 9) 690 | -10/Materials | Build established: Mutant 769 | -10/Materials | Discovered new exit (range 11) 804 | -10/Materials | Entered Subcaves 805 | -10/Subcaves | Shifting Twisted Machinery released Mak. Hammer 805 | -10/Subcaves | Approached by a straggling Scientist 1076 | -10/Subcaves | Found SUBCON Basin 1163 | -10/Subcaves | Discovered new exit (range 9) 1303 | -10/Subcaves | Learned location of Zion (-6) 2358 | -10/Subcaves | Visited Clippyterm 2368 | -10/Subcaves | Learned Factory stockpile data 2368 | -10/Subcaves | Learned location of Section 7 (-2) 2423 | -10/Subcaves | Shifting Twisted Machinery released Piercing Trap 2478 | -10/Subcaves | Shifting Twisted Machinery released Sub. Power Source 3133 | -10/Subcaves | Discovered new exit (range 14) 3199 | -10/Subcaves | Shifting Twisted Machinery released Sub. Monowheel 3212 | -10/Subcaves | Shifting Twisted Machinery released Sub. Power Source 3301 | -10/Subcaves | Core integrity fell below 50% 3829 | -10/Subcaves | Ambushed by Subdweller buried in earth 3834 | -10/Subcaves | Discovered new exit (range 14) 3839 | -10/Subcaves | Core integrity fell below 20% 3886 | -10/Subcaves | Entered Recycling 4600 | -8/Recycling | Scanned before Scraplab entrance 5400 | -8/Recycling | Discovered new exit (range 9) 5648 | -8/Recycling | Learned Storage trap positions 5706 | -8/Recycling | Learned Factory emergency access door positions 5725 | -8/Recycling | Learned Storage trap positions 5726 | -8/Recycling | Learned Storage stockpile data 5727 | -8/Recycling | Learned location of 1 exit from Storage 5728 | -8/Recycling | Learned 4 Factory zone layouts 5751 | -8/Recycling | Learned location of 1 exit from Extension 6526 | -8/Recycling | Entered Scraplab 6555 | -8/Recycling | Discovered new exit (range 2) 6558 | -8/Recycling | Entered Scraptown 6559 | -8/Scraptown | Identified exit to Factory 6610 | -8/Scraptown | Heard Great Nut preacher, LISTEN AND RECITE! 6869 | -8/Scraptown | Turned away by UFD registrar 6885 | -8/Scraptown | Released subatomizers from SUBCON Basin 6902 | -8/Scraptown | Attacked by Scraptown defenders 6905 | -8/Scraptown | Destroyed by 8N-G6V(j) with Overtuned Pulse Rifle Last Messages --------------- 1 across the starry vastness 2 transcending metal and time 3 a great mind came 4 descending with an angel 5 PRAISE BE TO GREAT NUT! 06840_ Triborg examines you suspiciously. QX-V5K(j): Sorry pal, the UFD is off limits to anyone the Scraplab deems untrustworthy. Like you. 06885_ Dropped SUBCON Basin. 06885_ Released subatomizers from SUBCON Basin. 06902_ ANNOUNCEMENT: Intruder alert! Defend Scraptown! 06903_ Triborg activates siege mode. 06903_ Penetrated by Siege Slug. 06903_ Penetrated by Bolt. 06903_ Nuclear Core destroyed. 06904_ S8-7LI(j): "Did MC send you?" 06904_ UFD Registry disabled. 06905_ Penetrated by Siege Slug. 06905_ Beam Cannon destroyed. 06905_ Lgt. Treads destroyed. Map ----- +----------------------------------------------------+ | ?????????????????????????????????????????????????? | | ?????????????????????????????????????????????????? | | ?????????????????????????????????????????????????? | | ?????????????????????????????????????????????????? | | ?????????????????????????????????????????????????? | | ?????????????????????????????????????????????????? | | ?????????????????????????????????????????????????? | | ?????????????????????????????????????????????????? | | ?????????????????????????????????????????????????? | | ?????????????????????????# ###???????????????????? | | ?????????????????????? #??????????????????? | | ???????????????????? #??????????????????? | | ?????????????????? #??????????????????? | | ??????????????????? #??????????????????? | | ???????????????????? #??????????????????? | | ????????????????????# #??????????????????? | | ????????????????????# j #??????????????????? | | ????????????????????# #??????????????????? | | ????????????????????# #??????????????????? | | ????????????????????# #??????????????????? | | ????????????????????# #??????????????????? | | ????????????????????# ###????????????????? | | ????????????????????# ""#"#??????????????? | | ????????????????????# j""""#??????????????? | | ????????????????????# j % & "###??????????????? | | ????????????????????# @ ###????????????????? | | ????????????????????# r #####??????????????? | | ????????????????????# r "??????????????? | | ????????????????????# ????????????? | | ????????????????????# """"???????????? | | ????????????????????# "??????????????? | | ???????????????###### TT "??????????????? | | ????????????? TT "??????????????? | | ????????????? "??????????????? | | ????????????? h "??????????????? | | ?????????????? "??????????????? | | ?????????????? "??????????????? | | ?????????????? #"??????????????? | | ?????????????? #???????????????? | | ?????????????? #???????????????? | | ???????????????########h### ####???????????????? | | ????????????????????? ??# #??????????????????? | | ??????????????????? ???# #??????????????????? | | ?????????????????? ???# #??????????????????? | | ????????????????? ????# #??????????????????? | | ?????????????????? ? ?????# #??????????????????? | | ??????????????????????????# #??????????????????? | | ??????????????????????????# #??????????????????? | | ??????????????????????????# #??????????????????? | | ??????????????????????????# #??????????????????? | +----------------------------------------------------+ Best States ------------- Heat Dissipation 35 Energy Generation 14 Energy Capacity 250 Matter Stores 300 Matter Capacity 300 Sight Range 16 Terrain Scan Density 10 Evasion (%) 55 Recoil Reduction 2 Item Schematics ----------------- Hcp. Storage Unit | -10/Materials | Hacked Huge Storage Unit | -10/Materials | Hacked Adv. Visual Processing Unit | -8/Recycling | Hacked Robot Schematics ------------------ M-28 Smith | -8/Recycling | Hacked Fabricated ------------ Nothing Repaired ---------- Nothing Alien Tech Used ----------------- None Achievements -------------- None Challenges ------------ None Game ------ Seed ImprinterEnergyJammer Manual? 0 Play Time 00:19:57 Cumulative 376.5 hours Start 2025.09.18 @ 02:03:32 End 2025.09.18 @ 02:22:39 Sessions 1 Manual Loads 0 Difficulty Rogue Special Mode None Game No. 424 Rogue 424 Adventurer 0 Explorer 0 Win Type - Total 11 Types 8/0/2/1/0/0/0/0/0/0 Lore% 79 Gallery% 81 Achievement% 76 Wizard Run 0 Options --------- Layout 0 ASCII 0 Keyboard 0 Movement Numpad Keybinds 0 Fullscreen 2 Font 18/X11 Map View 76x50 Zoom Use 0% Tactical HUD 1 Map Filters NONE Filters NONE Steam 1 RUN: a015df4e-7b02-4edb-a141-f3586d6a9a41